[Event "Olomouc Chess Summer-GM 2022"]
[Site "Olomouc"]
[Date "2022.08.19"]
[Round "8.5"]
[White "Winkelman, Albert"]
[Black "Pap, Gyula"]
[Result "1/2-1/2"]
[ECO "C42"]
[WhiteElo "2278"]
[BlackElo "2481"]
[Annotator "TA"]
[PlyCount "66"]
[EventDate "2022.08.10"]
[EventCountry "CZE"]
[SourceTitle "playchess.com"]
[Source "ChessBase"]
[SourceQuality "1"]
[TimeControl "40/5400+30:1800+30"]

{[%evp 9,66,-22,-21,-22,-21,-34,-14,-18,1,-28,-24,-70,12,8,7,0,0,0,0,-4,0,0,0,0,0,-7,0,-6,0,0,-7,0,0,-40,0,0,0,0,0,0,0,0,0,0,0,0,-3,0,0,-28,-28,-27,-12,-12,-12,-12,-3,-4,0]} 1. e4 e5 2. Nf3 Nf6 3. Nxe5 d6 {[%cal Bd7d6,Bd6d5][%mdl 32]} 4. Nc4 Nxe4 5. Bd3 Nf6 6. O-O {[#] C42: Petroff Defence: 3 Nxe5 and unusual White 3rd moves.} d5 $146 ({Predecessor:} 6... Be7 7. Re1 O-O 8. Qe2 Nc6 9. Be4 Bd7 10. d4 Nxe4 11. Qxe4 Bf6 12. Be3 Re8 {1-0 (22) Lins,H-Voss,M freechess.de 2015}) 7. Re1+ Be6 8. Ne3 Bc5 9. Bf5 Nc6 10. c3 (10. d3 $11) 10... O-O ({Black should try} 10... d4 $15 11. Nc4 Qd5 12. Bxe6 fxe6) 11. d4 $11 Bd6 12. Bc2 Ne7 13. Nd2 c6 14. Ndf1 Ne4 15. f3 Nf6 16. Ng3 c5 17. Nef5 Bxf5 18. Nxf5 Nxf5 19. Bxf5 Qc7 20. g3 Rfe8 {[%cal Od6g3] [#] Strongly threatening ...Bxg3!} 21. Be3 cxd4 (21... Bxg3 $5 22. hxg3 Qxg3+ 23. Kf1 Qh4 $11) 22. cxd4 Qb6 23. Qb3 Qxb3 24. axb3 g6 25. Bd3 Bc7 26. Bd2 Bb6 27. Bc3 Rxe1+ 28. Rxe1 Re8 29. Rxe8+ Nxe8 30. Kf2 Nd6 31. Ke3 {The position is equal.} Kf8 32. Bb4 Ke7 33. Bc5 Ke6 {Weighted Error Value: White=0.07 (flawless) /Black=0.09 (flawless)} 1/2-1/2

[Event "Olomouc Chess Summer-GM 2022"]
[Site "Olomouc"]
[Date "2022.08.20"]
[Round "9.1"]
[White "Pap, Gyula"]
[Black "Mirzoev, Azer"]
[Result "1/2-1/2"]
[ECO "C42"]
[WhiteElo "2481"]
[BlackElo "2424"]
[Annotator "TA"]
[PlyCount "24"]
[EventDate "2022.08.10"]
[EventCountry "CZE"]
[SourceTitle "playchess.com"]
[Source "ChessBase"]
[SourceQuality "1"]
[TimeControl "40/5400+30:1800+30"]

{[%evp 20,21,16,13]} 1. e4 e5 2. Nf3 Nf6 3. Nxe5 d6 4. Nf3 Nxe4 5. Qe2 Qe7 6. d3 Nf6 7. Bg5 Qxe2+ 8. Bxe2 Be7 9. O-O O-O 10. Nc3 c6 11. Rfe1 {[#]} {Predecessor:} Nbd7 $146 {C42: Petroff Defence: 3 Nxe5 and unusual White 3rd moves.} 12. Bf1 Bd8 {½-½ (12) Alonso,S (2506)-Rodriguez Vila,A (2545) Montevideo 2012} 1/2-1/2

[Event "Olomouc Chess Summer-GM 2022"]
[Site "Olomouc"]
[Date "2022.08.20"]
[Round "9.3"]
[White "Lutsko, Artem"]
[Black "Frank, Adam"]
[Result "1-0"]
[ECO "E71"]
[WhiteElo "2392"]
[BlackElo "2313"]
[Annotator "TA"]
[PlyCount "73"]
[EventDate "2022.08.10"]
[EventCountry "CZE"]
[SourceTitle "playchess.com"]
[Source "ChessBase"]
[SourceQuality "1"]
[TimeControl "40/5400+30:1800+30"]

{[%evp 14,73,43,35,49,35,38,41,59,60,62,62,50,49,40,15,59,53,68,70,96,70,70,70,68,74,71,68,81,81,64,58,126,99,214,196,319,319,302,314,470,486,545,554,529,522,432,293,335,339,333,321,324,311,329,308,318,281,554,439,29993,29994]} 1. d4 {[%emt 0:00:01]} Nf6 {[%emt 0:00:08]} 2. c4 {[%emt 0:00:05]} g6 {[%emt 0:00:04]} 3. Nc3 {[%emt 0:00:03]} Bg7 {[%emt 0:00:03]} 4. e4 {[%emt 0:00:06]} d6 {[%emt 0:00:04]} 5. h3 {[%emt 0:00:05]} O-O {[%emt 0:00:04]} 6. Be3 {[%emt 0:00:02]} c5 {[%emt 0:00:04]} 7. Nf3 {[%emt 0:01:30]} cxd4 {[%emt 0:00:05]} 8. Nxd4 {[%emt 0:00:02]} ({But not} 8. Qxd4 Ng4 $1 9. Qd2 Nxe3 10. Qxe3 Nc6 $15) 8... b6 {[%emt 0:00:10] E90: King's Indian: Classical: Early deviations and 6 h3.} 9. g3 {[%emt 0:09:06]} Bb7 {[%emt 0:03:45]} 10. Bg2 {[%emt 0:00:05]} Nbd7 {[%emt 0:10:16] White is slightly better.} 11. O-O {[%emt 0:06:13]} Rc8 {[%emt 0:00:40]} 12. b3 {[%emt 0:10:19] [#]} Nc5 $146 {[%emt 0:02:46]} ({Predecessor:} 12... Ba8 13. Re1 a6 14. a4 e6 15. g4 h6 16. Qd2 Nc5 17. Qc2 Qc7 18. Rad1 Rfd8 {1-0 (31) Anton Guijarro,D (2630)-Radjabov,T (2722) Monzon 2016}) 13. Qc2 {[%emt 0:01:43]} a6 {[%emt 0:14:19][%cal Ob6b5]} 14. Rac1 {[%emt 0:12:29]} (14. Rfd1 {looks sharper.} b5 15. e5 Ne8 16. f4) 14... Ba8 {[%emt 0:17:06][%cal Ob6b5]} 15. Rfd1 {[%emt 0:01:52][%cal Oe4e5]} Qe8 {[%emt 0:00:16]} 16. Nde2 {[%emt 0:08:39]} Rc7 {[%emt 0:07:35]} 17. Nf4 {[%emt 0:03:30]} Qb8 {[%emt 0:00:31]} 18. Nfd5 {[%emt 0:01:00]} Nxd5 {[%emt 0:04:17]} 19. Nxd5 {[%emt 0:00:04]} Bxd5 {[%emt 0:00:03]} 20. exd5 {[%emt 0:03:44]} Rfc8 {[%emt 0:07:06]} 21. h4 {[%emt 0:00:37]} b5 {[%emt 0:04:41]} 22. Bh3 {[%emt 0:00:25]} Nd7 {[%emt 0:01:07] [#] White leaves nothing to chance now.} (22... f5 $14) 23. c5 $1 $16 {[%emt 0:00:04][%cal Bc4c5,Bc5c6][%mdl 32] White is more active.} f5 {[%emt 0:08:27]} (23... dxc5 $16 24. Bf4 Be5) 24. c6 $18 {[%emt 0:01:11]} Ne5 {[%emt 0:00:03]} (24... Nf6 {keeps fighting.} 25. Qd3 Rf8) 25. f4 {[%emt 0:01:05]} Nf7 {[%emt 0:00:20]} 26. g4 {[%emt 0:00:07]} fxg4 {[%emt 0:00:29]} (26... Nh6 $142 27. gxf5 Nxf5) 27. Bxg4 {[%emt 0:00:03]} Rf8 {[%emt 0:00:05]} 28. h5 {[%emt 0:13:31]} gxh5 {[%emt 0:00:27]} 29. Be6 {[%emt 0:00:03] aiming for Qf5. This bishop pair is nice.} Kh8 {[%emt 0:00:04]} 30. Qe2 {[%emt 0:00:44]} Nd8 {[%emt 0:02:35]} 31. Bd7 {[%emt 0:00:46]} ({Not} 31. Qxh5 Nxe6 32. dxe6 Qc8 $14) 31... Rxd7 {[%emt 0:00:04]} 32. cxd7 {[%emt 0:00:03]} Qb7 {[%emt 0:00:03]} 33. Qxh5 {[%emt 0:00:04] Hoping for Qe8.} Qxd7 {[%emt 0:00:03]} 34. Kf2 {[%emt 0:01:28]} e5 {[%emt 0:01:59]} 35. Rh1 {[%emt 0:00:20][%csl Gh1][%cal Rh5h7] Dancing on a razor blade.} h6 {[%emt 0:00:05]} (35... Bf6 36. Bb6 Qf7) 36. Rcg1 {[%emt 0:00:47] Black must now prevent Rg6.} exf4 {[%emt 0:03:32] [#]} (36... Rf6 $18 37. Rg6 Rxg6 38. Qxg6 exf4) 37. Qxh6+ $3 {[%emt 0:00:36][%mdl 512] Weighted Error Value: White=0.11 (very precise) /Black=0.53} 1-0

[Event "Olomouc Chess Summer-GM 2022"]
[Site "Olomouc"]
[Date "2022.08.20"]
[Round "9.4"]
[White "Baum, Jonasz"]
[Black "Krejci, Jan"]
[Result "1-0"]
[ECO "D02"]
[WhiteElo "2410"]
[BlackElo "2511"]
[Annotator "TA"]
[PlyCount "79"]
[EventDate "2022.08.10"]
[EventCountry "CZE"]
[SourceTitle "playchess.com"]
[Source "ChessBase"]
[SourceQuality "1"]
[TimeControl "40/5400+30:1800+30"]

{[%evp 9,79,25,27,23,29,15,34,25,18,22,27,35,29,29,26,17,29,18,36,24,30,20,33,34,35,46,37,27,27,24,22,20,19,15,26,18,25,18,21,12,26,26,37,25,44,28,26,29,51,48,58,58,121,80,173,165,165,146,160,160,200,188,229,193,462,444,522,501,722,669,826,769]} 1. d4 {[%emt 0:00:43]} d5 {[%emt 0:00:05]} 2. Nf3 {[%emt 0:01:07]} e6 {[%emt 0:00:38]} 3. c4 {[%emt 0:00:06]} a6 {[%emt 0:00:05]} 4. Nbd2 {[%emt 0:00:22]} Nf6 {[%emt 0:01:34]} 5. g3 {[%emt 0:00:09]} b6 {[%emt 0:06:13]} 6. Bg2 {[%emt 0:00:09] D30: Queen's Gambit Declined: Systems without Nc3.} Bb7 {[%emt 0:00:05]} 7. O-O {[%emt 0:00:23]} Nbd7 {[%emt 0:03:52]} 8. b3 {[%emt 0:00:52] White is slightly better.} Be7 {[%emt 0:01:37]} 9. Bb2 {[%emt 0:00:33]} O-O {[%emt 0:00:06] [#]} 10. Rc1 $146 {[%emt 0:00:16]} ({Predecessor:} 10. cxd5 exd5 11. Ne5 c5 12. dxc5 Nxe5 13. Bxe5 bxc5 14. Nc4 Ra7 15. Nb2 Nd7 16. Bf4 {½-½ (71) Harsha,B (2547)-Abergel,T (2411) Paris 2022}) 10... c5 {[%emt 0:02:54]} 11. dxc5 {[%emt 0:06:40]} bxc5 {[%emt 0:01:19]} 12. Ne5 {[%emt 0:06:01]} Nxe5 {[%emt 0:01:18]} 13. Bxe5 {[%emt 0:00:12]} Qb6 {[%emt 0:00:04]} 14. cxd5 {[%emt 0:00:22]} exd5 {[%emt 0:00:06]} 15. Qc2 {[%emt 0:03:52]} Rfe8 {[%emt 0:00:57]} (15... Ng4 {looks sharper.} 16. Bb2 a5 17. Qf5 Qe6) 16. Bxf6 {[%emt 0:06:32]} Qxf6 {[%emt 0:00:50]} 17. e4 {[%emt 0:00:11]} Rad8 {[%emt 0:08:37]} 18. exd5 {[%emt 0:01:44]} Bxd5 {[%emt 0:00:08]} 19. Bxd5 {[%emt 0:00:05]} Rxd5 {[%emt 0:00:04]} 20. Nc4 {[%emt 0:03:06]} Bf8 {[%emt 0:02:06]} 21. Rfe1 {[%emt 0:10:03][%cal Bf1e1,Be1e2,Be2e8][%mdl 32]} Red8 {[%emt 0:00:16]} 22. Qc3 {[%emt 0:00:47]} Rd4 {[%emt 0:03:32]} 23. Kg2 {[%emt 0:00:57]} R8d5 {[%emt 0:02:44]} 24. Re2 {[%emt 0:07:32]} Rh5 {[%emt 0:04:14]} 25. h4 {[%emt 0:06:47]} Rf5 {[%emt 0:09:42]} 26. Rce1 {[%emt 0:05:29]} h6 {[%emt 0:00:05]} 27. Qc2 {[%emt 0:01:20]} g6 {[%emt 0:08:30]} 28. Re8 {[%emt 0:03:05]} Kg7 {[%emt 0:03:04]} 29. Kg1 {[%emt 0:01:51]} Rfd5 {[%emt 0:03:39]} 30. Qe2 {[%emt 0:01:38]} g5 {[%emt 0:07:37]} (30... h5 $14) 31. Ne3 {[%emt 0:04:24] White is more active.} Re5 {[%emt 0:04:25] [#]} (31... Rd8 $16 32. hxg5 hxg5) 32. Rxe5 $1 $18 {[%emt 0:00:33]} Qxe5 {[%emt 0:00:02]} 33. hxg5 {[%emt 0:01:15]} (33. Qxa6 $6 gxh4 34. Qc8 Kg8 $11) 33... Qxg5 {[%emt 0:00:31]} 34. Qxa6 {[%emt 0:02:07]} c4 {[%emt 0:01:33] [#]} 35. Qc8 $1 $36 {[%emt 0:04:33][%mdl 2048] Black must now prevent Nf5+. Black is under strong pressure.} ({Much less strong is} 35. Nxc4 $6 Bc5 36. Ne3 h5 $16) 35... Rf4 {[%emt 0:02:16] Prevents Nf5+.} 36. Rd1 {[%emt 0:03:17]} ({Don't play} 36. Nxc4 $6 Bc5 37. Ne3 h5 $16) 36... Rf3 $2 {[%emt 0:03:21]} (36... cxb3 {was necessary.} 37. axb3 Be7 38. Qc3+ Kg8) 37. Kg2 {[%emt 0:03:13] White is clearly winning.} Rxe3 {[%emt 0:01:01]} 38. fxe3 {[%emt 0:00:08]} Qxe3 {[%emt 0:00:03] aiming for ...Qe2+.} 39. Qg4+ {[%emt 0:01:26]} Kh7 {[%emt 0:01:31]} 40. Qxc4 {[%emt 0:00:40] Weighted Error Value: White=0.05 (flawless) /Black=0.26 (precise)} 1-0

[Event "Olomouc Chess Summer-GM 2022"]
[Site "Olomouc"]
[Date "2022.08.20"]
[Round "9.5"]
[White "Svanda, Ondrej"]
[Black "Sorm, Daniel"]
[Result "0-1"]
[ECO "B40"]
[WhiteElo "2363"]
[BlackElo "2308"]
[Annotator "TA"]
[PlyCount "78"]
[EventDate "2022.08.10"]
[EventCountry "CZE"]
[SourceTitle "playchess.com"]
[Source "ChessBase"]
[SourceQuality "1"]
[TimeControl "40/5400+30:1800+30"]

{[%evp 9,78,14,7,5,2,4,12,11,10,12,25,13,43,31,41,27,40,28,38,43,72,79,68,61,60,67,94,37,57,45,49,0,0,0,0,-26,-32,-36,-37,-38,-50,-38,0,0,0,-22,-21,-10,-12,-16,-11,-25,-15,-33,0,0,0,-15,21,21,26,40,43,22,25,-372,-361,-408,-400,-385,-375]} 1. e4 c5 2. Nf3 e6 3. g3 Nc6 4. Bg2 Nf6 5. Qe2 e5 6. O-O {B40: Sicilian: 2...e6, Unusual lines.} Be7 7. d3 O-O 8. a4 {The position is equal.} Re8 9. Na3 {[%cal Bb1a3,Ba3c4,Bc4e3][%mdl 32]} Bf8 10. Bg5 h6 11. Bxf6 Qxf6 12. Nc4 d6 13. c3 {[#]} g6 $146 ({Predecessor:} 13... Be6 14. Ne3 Qd8 15. Nd2 Ne7 16. f4 exf4 17. gxf4 f5 18. Qf3 Rb8 19. Rae1 Qd7 {1-0 (55) Murzin,V (2336)-Dimitrova,A (2233) Moscow 2018}) 14. Nfd2 Qe7 15. Ne3 (15. f4 {looks sharper.} exf4 16. gxf4 Qh4 17. Ne3) 15... Bg7 16. f4 exf4 17. gxf4 f5 18. Qf2 (18. Rae1 $16) 18... Be6 $14 19. Qg3 Qf7 20. Kh1 (20. a5 $14 {might be stronger.} a6 21. Ndc4) 20... Ne7 $1 $11 {[%cal Bc6e7,Be7d5,Bd5f4][%mdl 32]} 21. Rg1 d5 22. exd5 Nxd5 ({Don't play} 22... Bxd5 23. Ndc4 Rad8 24. Nxd5 Nxd5 25. Rae1 $11) 23. Nec4 {aiming for Nd6.} Qc7 {Against Nd6} 24. Qxg6 Nxf4 25. Qg3 Re7 {[%cal Be8e7,Be7c7,Bc7d7,Bd7d3][%mdl 32] Threatens to win with ...Rd8.} 26. Rae1 Rae8 27. Rgf1 {[%cal Bg1f1,Bf1f5,Bf5c5,Bc5h5][%mdl 32]} Nxg2 28. Qxc7 $1 (28. Qxg2 $2 Qd8 29. Nf3 Bd5 30. Rxe7 Qxe7 $17) 28... Rxc7 29. Kxg2 Rd7 30. Rxf5 Rxd3 31. Rxc5 Bh3+ {[%mdl 64] [#] Discovered Attack. A strong pair of Bishops.} 32. Kf2 Rf8+ 33. Ke2 Rfd8 {[%mdl 1024] Black has compensation.} 34. Rg1 {Prevents Bg4+. Strongly threatening Ne4.} R3d7 35. Rh5 {[%csl LRh3,LRh6]} Re7+ $1 36. Ne3 Bd7 37. Nb3 $2 {[%mdl 8192]} (37. Rxh6 $11 Bxa4 38. Rh4) 37... Rde8 $19 {Black is winning.} 38. Rg3 {[#]} Rxe3+ {[%mdl 576] Remove Defender, Deflection} 39. Rxe3 Bg4+ {Weighted Error Value: White=0.34/Black=0.07 (flawless)} 0-1